[Event "Titled Tuesday Blitz June 6 Late 2023"]
[White "el_sporco"]
[Black "dorpato"]
[WhiteElo "2412"]
[BlackElo "2060"]
[Result "1-0"]
[Round "8"]
[TimeControl "180+2"]
[Date "2023.06.07"]
[WhiteClock "0:00:38"]
[BlackClock "0:00:01"]
[Board "125"]

1. e4 {[%clk 0:03:00]}  c5 {[%clk 0:02:56]} 2. Nf3 {[%clk 0:03:00]}  g6 {[%clk 0:02:53]} 3. d4 {[%clk 0:03:00]}  cxd4 {[%clk 0:02:52]} 4. Nxd4 {[%clk 0:03:00]}  Bg7 {[%clk 0:02:52]} 5. Nc3 {[%clk 0:03:01]}  Nc6 {[%clk 0:02:48]} 6. Be3 {[%clk 0:03:02]}  Nf6 {[%clk 0:02:47]} 7. Bc4 {[%clk 0:03:01]}  O-O {[%clk 0:02:41]} 8. Bb3 {[%clk 0:03:01]}  d6 {[%clk 0:02:30]} 9. f3 {[%clk 0:03:00]}  a5 {[%clk 0:02:24]} 10. Qd2 {[%clk 0:02:41]}  Bd7 {[%clk 0:02:05]} 11. O-O-O {[%clk 0:02:39]}  Nxd4 {[%clk 0:01:55]} 12. Bxd4 {[%clk 0:02:38]}  b5 {[%clk 0:01:47]} 13. Nd5 {[%clk 0:02:32]}  Nxd5 {[%clk 0:01:35]} 14. Bxg7 {[%clk 0:02:25]}  Kxg7 {[%clk 0:01:32]} 15. Bxd5 {[%clk 0:02:25]}  Rc8 {[%clk 0:01:31]} 16. Qd4+ {[%clk 0:02:21]}  Kg8 {[%clk 0:01:30]} 17. Rd2 {[%clk 0:02:20]}  Rc5 {[%clk 0:01:25]} 18. a3 {[%clk 0:02:00]}  a4 {[%clk 0:01:15]} 19. e5 {[%clk 0:01:49]}  Qc7 {[%clk 0:00:52]} 20. exd6 {[%clk 0:01:46]}  Qxd6 {[%clk 0:00:42]} 21. Rhd1 {[%clk 0:01:34]}  Rfc8 {[%clk 0:00:24]} 22. c3 {[%clk 0:01:28]}  Bf5 {[%clk 0:00:17]} 23. Be4 {[%clk 0:01:19]}  Bxe4 {[%clk 0:00:15]} 24. Qxd6 {[%clk 0:01:12]}  exd6 {[%clk 0:00:15]} 25. fxe4 {[%clk 0:01:12]}  Re5 {[%clk 0:00:14]} 26. Rd4 {[%clk 0:01:09]}  Rce8 {[%clk 0:00:13]} 27. Rd5 {[%clk 0:01:00]}  Rxe4 {[%clk 0:00:12]} 28. Rxb5 {[%clk 0:01:01]}  Re2 {[%clk 0:00:12]} 29. Rd2 {[%clk 0:01:01]}  Re1+ {[%clk 0:00:10]} 30. Kc2 {[%clk 0:01:00]}  Rh1 {[%clk 0:00:10]} 31. Rbd5 {[%clk 0:00:56]}  Rxh2 {[%clk 0:00:08]} 32. Rxd6 {[%clk 0:00:56]}  h5 {[%clk 0:00:07]} 33. c4 {[%clk 0:00:55]}  h4 {[%clk 0:00:07]} 34. c5 {[%clk 0:00:54]}  Rc8 {[%clk 0:00:07]} 35. c6 {[%clk 0:00:53]}  Kg7 {[%clk 0:00:07]} 36. Kc3 {[%clk 0:00:50]}  h3 {[%clk 0:00:06]} 37. gxh3 {[%clk 0:00:49]}  Rxh3+ {[%clk 0:00:06]} 38. Kc4 {[%clk 0:00:48]}  g5 {[%clk 0:00:03]} 39. Kc5 {[%clk 0:00:45]}  g4 {[%clk 0:00:03]} 40. R6d3 {[%clk 0:00:44]}  Rxd3 {[%clk 0:00:03]} 41. Rxd3 {[%clk 0:00:45]}  f5 {[%clk 0:00:03]} 42. Kb6 {[%clk 0:00:43]}  f4 {[%clk 0:00:02]} 43. Kb7 {[%clk 0:00:43]}  Rf8 {[%clk 0:00:01]} 44. c7 {[%clk 0:00:44]}  f3 {[%clk 0:00:01]} 45. Rd4 {[%clk 0:00:38]} 1-0


[Site "https://www.chess.com"]

[Event "Titled Tuesday Blitz June 6 Late 2023"]
[White "NtcPou"]
[Black "Osmonbekov, Talaibek"]
[BlackFideId "2017253"]
[WhiteElo "2049"]
[BlackElo "2135"]
[Result "0-1"]
[Round "8"]
[TimeControl "180+2"]
[Date "2023.06.07"]
[WhiteClock "0:00:16"]
[BlackClock "0:01:17"]
[Board "126"]

1. e4 {[%clk 0:03:00]}  c5 {[%clk 0:02:59]} 2. Nf3 {[%clk 0:02:59]}  d6 {[%clk 0:03:00]} 3. Bb5+ {[%clk 0:02:58]}  Bd7 {[%clk 0:02:59]} 4. Bxd7+ {[%clk 0:02:58]}  Qxd7 {[%clk 0:03:00]} 5. c4 {[%clk 0:02:58]}  Nf6 {[%clk 0:02:59]} 6. Nc3 {[%clk 0:02:56]}  Nc6 {[%clk 0:02:58]} 7. d4 {[%clk 0:02:54]}  cxd4 {[%clk 0:02:58]} 8. Nxd4 {[%clk 0:02:54]}  g6 {[%clk 0:02:52]} 9. O-O {[%clk 0:02:53]}  Bg7 {[%clk 0:02:52]} 10. f3 {[%clk 0:02:52]}  Nxe4 {[%clk 0:02:51]} 11. fxe4 {[%clk 0:02:19]}  Nxd4 {[%clk 0:02:50]} 12. Be3 {[%clk 0:02:17]}  Ne6 {[%clk 0:02:49]} 13. Rc1 {[%clk 0:02:09]}  O-O {[%clk 0:02:47]} 14. Nd5 {[%clk 0:02:09]}  b6 {[%clk 0:02:46]} 15. Qd2 {[%clk 0:02:02]}  Nc5 {[%clk 0:02:37]} 16. Bxc5 {[%clk 0:01:48]}  bxc5 {[%clk 0:02:34]} 17. Kh1 {[%clk 0:01:47]}  Rab8 {[%clk 0:02:29]} 18. b3 {[%clk 0:01:47]}  Rbe8 {[%clk 0:02:04]} 19. Rf3 {[%clk 0:01:46]}  f5 {[%clk 0:02:01]} 20. exf5 {[%clk 0:01:33]}  Rxf5 {[%clk 0:02:01]} 21. Rcf1 {[%clk 0:01:25]}  Ref8 {[%clk 0:02:01]} 22. Qe2 {[%clk 0:01:21]}  e6 {[%clk 0:01:57]} 23. Ne3 {[%clk 0:01:20]}  Rxf3 {[%clk 0:01:56]} 24. Rxf3 {[%clk 0:01:20]}  h6 {[%clk 0:01:51]} 25. h3 {[%clk 0:01:17]}  Rxf3 {[%clk 0:01:45]} 26. Qxf3 {[%clk 0:01:16]}  Qf7 {[%clk 0:01:46]} 27. Qa8+ {[%clk 0:01:14]}  Kh7 {[%clk 0:01:45]} 28. Qe4 {[%clk 0:01:14]}  Bd4 {[%clk 0:01:42]} 29. Ng4 {[%clk 0:00:55]}  Qf1+ {[%clk 0:01:29]} 30. Kh2 {[%clk 0:00:55]}  h5 {[%clk 0:01:28]} 31. Qb7+ {[%clk 0:00:54]}  Bg7 {[%clk 0:01:21]} 32. Qe4 {[%clk 0:00:16]}  hxg4 {[%clk 0:01:17]} 0-1


[Site "https://www.chess.com"]

[Event "Titled Tuesday Blitz June 6 Late 2023"]
[White "Nepomniachtchi, Ian"]
[Black "Zhigalko, Sergei"]
[WhiteFideId "4168119"]
[BlackFideId "13502956"]
[WhiteElo "2781"]
[BlackElo "2626"]
[Result "1-0"]
[Round "9"]
[TimeControl "180+2"]
[Date "2023.06.07"]
[WhiteClock "0:00:33"]
[BlackClock "0:00:03"]
[Board "4"]

1. e4 {[%clk 0:03:00]}  c5 {[%clk 0:03:00]} 2. Nf3 {[%clk 0:03:01]}  Nc6 {[%clk 0:03:00]} 3. d4 {[%clk 0:02:59]}  cxd4 {[%clk 0:03:01]} 4. Nxd4 {[%clk 0:02:59]}  Nf6 {[%clk 0:03:02]} 5. Nc3 {[%clk 0:03:00]}  e5 {[%clk 0:03:02]} 6. Ndb5 {[%clk 0:03:00]}  d6 {[%clk 0:03:03]} 7. Bg5 {[%clk 0:03:01]}  a6 {[%clk 0:03:03]} 8. Na3 {[%clk 0:03:01]}  b5 {[%clk 0:03:04]} 9. Nd5 {[%clk 0:03:01]}  Be7 {[%clk 0:03:04]} 10. Bxf6 {[%clk 0:03:02]}  Bxf6 {[%clk 0:03:05]} 11. c4 {[%clk 0:03:02]}  b4 {[%clk 0:03:05]} 12. Nc2 {[%clk 0:03:03]}  O-O {[%clk 0:03:05]} 13. h4 {[%clk 0:03:01]}  a5 {[%clk 0:03:00]} 14. g3 {[%clk 0:03:01]}  Be6 {[%clk 0:02:55]} 15. Qd3 {[%clk 0:03:00]}  a4 {[%clk 0:02:46]} 16. Nce3 {[%clk 0:03:00]}  Nd4 {[%clk 0:02:38]} 17. O-O-O {[%clk 0:03:00]}  Qb8 {[%clk 0:02:21]} 18. Kb1 {[%clk 0:02:59]}  Bd8 {[%clk 0:02:16]} 19. f4 {[%clk 0:02:59]}  b3 {[%clk 0:01:37]} 20. a3 {[%clk 0:02:59]}  Bb6 {[%clk 0:01:29]} 21. f5 {[%clk 0:02:57]}  Bxd5 {[%clk 0:01:26]} 22. Nxd5 {[%clk 0:02:58]}  f6 {[%clk 0:01:15]} 23. g4 {[%clk 0:02:58]}  Nc2 {[%clk 0:01:09]} 24. g5 {[%clk 0:02:36]}  Bd4 {[%clk 0:01:01]} 25. Qg3 {[%clk 0:02:35]}  Kh8 {[%clk 0:00:53]} 26. h5 {[%clk 0:02:35]}  fxg5 {[%clk 0:00:48]} 27. Qxg5 {[%clk 0:02:18]}  h6 {[%clk 0:00:38]} 28. Qg3 {[%clk 0:02:10]}  Qa7 {[%clk 0:00:23]} 29. Rh3 {[%clk 0:01:57]}  Qc5 {[%clk 0:00:22]} 30. f6 {[%clk 0:01:43]}  Ra7 {[%clk 0:00:22]} 31. Rh2 {[%clk 0:01:35]}  gxf6 {[%clk 0:00:05]} 32. Rg2 {[%clk 0:01:30]}  Be3 {[%clk 0:00:04]} 33. Bd3 {[%clk 0:01:09]}  Bg5 {[%clk 0:00:03]} 34. Bxc2 {[%clk 0:01:09]}  bxc2+ {[%clk 0:00:04]} 35. Rxc2 {[%clk 0:01:09]}  Rb7 {[%clk 0:00:04]} 36. Rd3 {[%clk 0:01:05]}  Rfb8 {[%clk 0:00:04]} 37. Ka2 {[%clk 0:01:05]}  Rb3 {[%clk 0:00:02]} 38. Nb4 {[%clk 0:01:00]}  R3xb4 {[%clk 0:00:01]} 39. axb4 {[%clk 0:00:59]}  Qxb4 {[%clk 0:00:02]} 40. Qf3 {[%clk 0:00:55]}  Kg7 {[%clk 0:00:02]} 41. Qf5 {[%clk 0:00:53]}  Rb7 {[%clk 0:00:03]} 42. Qe6 {[%clk 0:00:45]}  Kf8 {[%clk 0:00:03]} 43. c5 {[%clk 0:00:41]}  a3 {[%clk 0:00:02]} 44. Rxa3 {[%clk 0:00:36]}  Kg7 {[%clk 0:00:03]} 45. cxd6 {[%clk 0:00:35]}  Qxe4 {[%clk 0:00:02]} 46. Rc7+ {[%clk 0:00:33]}  Rxc7 {[%clk 0:00:03]} 47. dxc7 {[%clk 0:00:34]}  Qc4+ {[%clk 0:00:03]} 48. Qxc4 {[%clk 0:00:33]} 1-0


[Site "https://www.chess.com"]

[Event "Titled Tuesday Blitz June 6 Late 2023"]
[White "Kollars, Dmitrij"]
[Black "Martinez Alcantara, Jose Eduardo"]
[WhiteFideId "12909572"]
[BlackFideId "3805662"]
[WhiteElo "2584"]
[BlackElo "2711"]
[Result "0-1"]
[Round "9"]
[TimeControl "180+2"]
[Date "2023.06.07"]
[WhiteClock "0:00:01"]
[BlackClock "0:00:05"]
[Board "5"]

1. e4 {[%clk 0:03:00]}  c5 {[%clk 0:02:57]} 2. c3 {[%clk 0:02:59]}  e5 {[%clk 0:02:57]} 3. Nf3 {[%clk 0:02:58]}  Nc6 {[%clk 0:02:57]} 4. Bc4 {[%clk 0:02:57]}  Be7 {[%clk 0:02:56]} 5. O-O {[%clk 0:02:56]}  Nf6 {[%clk 0:02:56]} 6. d4 {[%clk 0:02:56]}  cxd4 {[%clk 0:02:44]} 7. cxd4 {[%clk 0:02:55]}  d6 {[%clk 0:02:33]} 8. Nc3 {[%clk 0:02:41]}  O-O {[%clk 0:02:31]} 9. h3 {[%clk 0:02:41]}  h6 {[%clk 0:02:20]} 10. Be3 {[%clk 0:02:39]}  a6 {[%clk 0:01:58]} 11. d5 {[%clk 0:02:35]}  Nb8 {[%clk 0:01:57]} 12. a4 {[%clk 0:02:35]}  Nbd7 {[%clk 0:01:55]} 13. a5 {[%clk 0:02:35]}  Kh8 {[%clk 0:01:50]} 14. b4 {[%clk 0:02:28]}  Nh7 {[%clk 0:01:43]} 15. Bd3 {[%clk 0:02:27]}  Ng5 {[%clk 0:01:43]} 16. Nd2 {[%clk 0:02:16]}  Nh7 {[%clk 0:01:29]} 17. Nc4 {[%clk 0:02:07]}  Bg5 {[%clk 0:01:23]} 18. Nxd6 {[%clk 0:02:02]}  Ndf6 {[%clk 0:01:24]} 19. Nc4 {[%clk 0:01:59]}  Bxe3 {[%clk 0:01:22]} 20. fxe3 {[%clk 0:01:53]}  Ng5 {[%clk 0:01:22]} 21. Kh2 {[%clk 0:01:36]}  Bd7 {[%clk 0:01:19]} 22. Nb6 {[%clk 0:01:32]}  Rb8 {[%clk 0:01:20]} 23. Qc2 {[%clk 0:01:28]}  Qe7 {[%clk 0:01:13]} 24. Rac1 {[%clk 0:01:08]}  Rbd8 {[%clk 0:01:11]} 25. Qb2 {[%clk 0:01:07]}  Nh5 {[%clk 0:01:00]} 26. b5 {[%clk 0:01:01]}  axb5 {[%clk 0:00:57]} 27. Bxb5 {[%clk 0:00:48]}  Bc8 {[%clk 0:00:57]} 28. Bd3 {[%clk 0:00:43]}  Nh7 {[%clk 0:00:57]} 29. Nb5 {[%clk 0:00:41]}  Qg5 {[%clk 0:00:53]} 30. Qf2 {[%clk 0:00:41]}  N7f6 {[%clk 0:00:54]} 31. Rc7 {[%clk 0:00:34]}  Kg8 {[%clk 0:00:49]} 32. Rfc1 {[%clk 0:00:31]}  Bg4 {[%clk 0:00:43]} 33. Rxb7 {[%clk 0:00:26]}  Nxe4 {[%clk 0:00:27]} 34. Bxe4 {[%clk 0:00:26]}  f5 {[%clk 0:00:28]} 35. Bf3 {[%clk 0:00:22]}  e4 {[%clk 0:00:28]} 36. Bd1 {[%clk 0:00:18]}  Bxd1 {[%clk 0:00:27]} 37. Rxd1 {[%clk 0:00:19]}  f4 {[%clk 0:00:28]} 38. exf4 {[%clk 0:00:15]}  Nxf4 {[%clk 0:00:28]} 39. Qg3 {[%clk 0:00:14]}  Qf6 {[%clk 0:00:27]} 40. Nd7 {[%clk 0:00:14]}  Rxd7 {[%clk 0:00:27]} 41. Rxd7 {[%clk 0:00:15]}  Nh5 {[%clk 0:00:28]} 42. Qd6 {[%clk 0:00:15]}  Qg5 {[%clk 0:00:28]} 43. Nc7 {[%clk 0:00:10]}  Rf2 {[%clk 0:00:27]} 44. Rg1 {[%clk 0:00:08]}  Nf4 {[%clk 0:00:23]} 45. Kh1 {[%clk 0:00:05]}  Rxg2 {[%clk 0:00:15]} 46. Qe6+ {[%clk 0:00:03]}  Nxe6 {[%clk 0:00:09]} 47. Rxg2 {[%clk 0:00:03]}  Qc1+ {[%clk 0:00:08]} 48. Rg1 {[%clk 0:00:04]}  Qc3 {[%clk 0:00:09]} 49. Kh2 {[%clk 0:00:01]}  Nxc7 {[%clk 0:00:08]} 50. Rgxg7+ {[%clk 0:00:01]}  Kf8 {[%clk 0:00:05]} 0-1


[Site "https://www.chess.com"]

[Event "Titled Tuesday Blitz June 6 Late 2023"]
[White "Makarian, Rudik"]
[Black "Keymer, Vincent"]
[WhiteFideId "44105681"]
[BlackFideId "12940690"]
[WhiteElo "2451"]
[BlackElo "2669"]
[Result "1-0"]
[Round "9"]
[TimeControl "180+2"]
[Date "2023.06.07"]
[WhiteClock "0:00:05"]
[BlackClock "0:00:05"]
[Board "6"]

1. d4 {[%clk 0:03:00]}  Nf6 {[%clk 0:02:59]} 2. c4 {[%clk 0:03:01]}  e6 {[%clk 0:02:57]} 3. Nf3 {[%clk 0:03:02]}  d5 {[%clk 0:02:57]} 4. g3 {[%clk 0:03:02]}  Bb4+ {[%clk 0:02:54]} 5. Bd2 {[%clk 0:03:03]}  Be7 {[%clk 0:02:55]} 6. Bg2 {[%clk 0:03:03]}  O-O {[%clk 0:02:55]} 7. Qc2 {[%clk 0:03:04]}  c6 {[%clk 0:02:55]} 8. O-O {[%clk 0:03:04]}  Nbd7 {[%clk 0:02:56]} 9. Bf4 {[%clk 0:03:05]}  a5 {[%clk 0:02:53]} 10. Rd1 {[%clk 0:03:04]}  h6 {[%clk 0:02:53]} 11. h4 {[%clk 0:02:55]}  Ng4 {[%clk 0:02:37]} 12. b3 {[%clk 0:02:45]}  f5 {[%clk 0:02:33]} 13. Nc3 {[%clk 0:02:42]}  Qe8 {[%clk 0:02:24]} 14. Bc7 {[%clk 0:02:03]}  Qh5 {[%clk 0:02:11]} 15. e3 {[%clk 0:02:02]}  g5 {[%clk 0:02:08]} 16. Ne2 {[%clk 0:02:02]}  Ndf6 {[%clk 0:01:53]} 17. Ne5 {[%clk 0:01:52]}  Nxe5 {[%clk 0:01:38]} 18. dxe5 {[%clk 0:01:42]}  Ng4 {[%clk 0:01:25]} 19. Qd3 {[%clk 0:01:25]}  f4 {[%clk 0:00:35]} 20. exf4 {[%clk 0:01:06]}  Bc5 {[%clk 0:00:34]} 21. Rf1 {[%clk 0:00:39]}  gxh4 {[%clk 0:00:30]} 22. Bd6 {[%clk 0:00:39]}  Bxd6 {[%clk 0:00:23]} 23. exd6 {[%clk 0:00:40]}  Rf7 {[%clk 0:00:20]} 24. Bh3 {[%clk 0:00:18]}  Rg7 {[%clk 0:00:18]} 25. Bxg4 {[%clk 0:00:15]}  Qxg4 {[%clk 0:00:19]} 26. f3 {[%clk 0:00:13]}  Qh3 {[%clk 0:00:16]} 27. Rf2 {[%clk 0:00:13]}  hxg3 {[%clk 0:00:15]} 28. Rg2 {[%clk 0:00:13]}  Bd7 {[%clk 0:00:14]} 29. Qd4 {[%clk 0:00:12]}  Rf8 {[%clk 0:00:15]} 30. c5 {[%clk 0:00:05]}  Rf5 {[%clk 0:00:15]} 31. Re1 {[%clk 0:00:04]}  Rg6 {[%clk 0:00:13]} 32. Kf1 {[%clk 0:00:04]}  e5 {[%clk 0:00:11]} 33. Qc3 {[%clk 0:00:05]}  Kh7 {[%clk 0:00:05]} 34. Ng1 {[%clk 0:00:04]}  Qh5 {[%clk 0:00:05]} 35. Rxe5 {[%clk 0:00:04]}  Rgf6 {[%clk 0:00:04]} 36. Re7+ {[%clk 0:00:04]}  Rf7 {[%clk 0:00:04]} 37. Rxg3 {[%clk 0:00:04]}  Rxf4 {[%clk 0:00:05]} 38. Rg7+ {[%clk 0:00:03]}  Kh8 {[%clk 0:00:05]} 39. Rgxf7+ {[%clk 0:00:04]}  Kg8 {[%clk 0:00:06]} 40. Rg7+ {[%clk 0:00:04]}  Kf8 {[%clk 0:00:06]} 41. Rg8+ {[%clk 0:00:04]}  Kxg8 {[%clk 0:00:05]} 42. Qg7# {[%clk 0:00:05]} 1-0


[Site "https://www.chess.com"]

[Event "Titled Tuesday Blitz June 6 Late 2023"]
[White "Fernandez Guillen, Ernesto J."]
[Black "Hakobyan, Aram"]
[WhiteFideId "3512428"]
[BlackFideId "13306677"]
[WhiteElo "2434"]
[BlackElo "2584"]
[Result "1-0"]
[Round "9"]
[TimeControl "180+2"]
[Date "2023.06.07"]
[WhiteClock "0:01:49"]
[BlackClock "0:01:15"]
[Board "9"]

1. e4 {[%clk 0:03:00]}  g6 {[%clk 0:02:59]} 2. d4 {[%clk 0:02:58]}  Bg7 {[%clk 0:03:00]} 3. Nc3 {[%clk 0:02:50]}  c5 {[%clk 0:02:59]} 4. Nf3 {[%clk 0:02:47]}  cxd4 {[%clk 0:02:58]} 5. Nxd4 {[%clk 0:02:48]}  Nc6 {[%clk 0:02:57]} 6. Be3 {[%clk 0:02:47]}  Nf6 {[%clk 0:02:57]} 7. Bc4 {[%clk 0:02:44]}  O-O {[%clk 0:02:56]} 8. Bb3 {[%clk 0:02:43]}  d6 {[%clk 0:02:51]} 9. f3 {[%clk 0:02:41]}  Qa5 {[%clk 0:02:48]} 10. Qd2 {[%clk 0:02:37]}  Nxd4 {[%clk 0:02:48]} 11. Bxd4 {[%clk 0:02:33]}  Be6 {[%clk 0:02:49]} 12. h4 {[%clk 0:02:26]}  b5 {[%clk 0:02:41]} 13. h5 {[%clk 0:02:22]}  Bxb3 {[%clk 0:02:38]} 14. cxb3 {[%clk 0:02:19]}  b4 {[%clk 0:02:38]} 15. Nd5 {[%clk 0:02:03]}  e5 {[%clk 0:02:10]} 16. Ne7+ {[%clk 0:01:52]}  Kh8 {[%clk 0:02:10]} 17. h6 {[%clk 0:01:53]}  exd4 {[%clk 0:02:00]} 18. hxg7+ {[%clk 0:01:53]}  Kxg7 {[%clk 0:02:01]} 19. Qh6+ {[%clk 0:01:53]}  Kh8 {[%clk 0:02:01]} 20. Nd5 {[%clk 0:01:54]}  Nh5 {[%clk 0:01:15]} 21. Rxh5 {[%clk 0:01:49]} 1-0


[Site "https://www.chess.com"]

[Event "Titled Tuesday Blitz June 6 Late 2023"]
[White "Daggupati, Balaji"]
[Black "Bortnyk, Mykola"]
[WhiteFideId "2090759"]
[BlackFideId "14120836"]
[WhiteElo "2747"]
[BlackElo "2592"]
[Result "0-1"]
[Round "9"]
[TimeControl "180+2"]
[Date "2023.06.07"]
[WhiteClock "0:00:29"]
[BlackClock "0:01:19"]
[Board "10"]

1. e4 {[%clk 0:03:00]}  Nf6 {[%clk 0:03:00]} 2. e5 {[%clk 0:03:01]}  Nd5 {[%clk 0:03:00]} 3. d4 {[%clk 0:03:02]}  d6 {[%clk 0:03:01]} 4. c4 {[%clk 0:03:02]}  Nb6 {[%clk 0:03:01]} 5. exd6 {[%clk 0:03:03]}  exd6 {[%clk 0:03:01]} 6. Nf3 {[%clk 0:03:00]}  Bg4 {[%clk 0:03:00]} 7. Be2 {[%clk 0:02:59]}  Be7 {[%clk 0:03:01]} 8. O-O {[%clk 0:02:58]}  O-O {[%clk 0:03:00]} 9. Be3 {[%clk 0:02:42]}  Nc6 {[%clk 0:02:58]} 10. Nbd2 {[%clk 0:02:41]}  Bf6 {[%clk 0:02:54]} 11. h3 {[%clk 0:02:33]}  Bh5 {[%clk 0:02:53]} 12. Rc1 {[%clk 0:02:30]}  Re8 {[%clk 0:02:53]} 13. Re1 {[%clk 0:02:29]}  h6 {[%clk 0:02:45]} 14. Qb3 {[%clk 0:02:29]}  Rb8 {[%clk 0:02:38]} 15. d5 {[%clk 0:02:22]}  Ne7 {[%clk 0:02:31]} 16. Ne4 {[%clk 0:02:18]}  Nexd5 {[%clk 0:02:21]} 17. Nxf6+ {[%clk 0:01:55]}  Nxf6 {[%clk 0:02:22]} 18. c5 {[%clk 0:01:56]}  dxc5 {[%clk 0:02:10]} 19. Rxc5 {[%clk 0:01:57]}  Nbd5 {[%clk 0:02:05]} 20. Bd4 {[%clk 0:01:45]}  c6 {[%clk 0:02:01]} 21. Bf1 {[%clk 0:01:43]}  Rxe1 {[%clk 0:01:53]} 22. Nxe1 {[%clk 0:01:44]}  Qd6 {[%clk 0:01:50]} 23. Nf3 {[%clk 0:01:38]}  b6 {[%clk 0:01:41]} 24. Rc1 {[%clk 0:01:33]}  Re8 {[%clk 0:01:39]} 25. Nd2 {[%clk 0:00:51]}  c5 {[%clk 0:01:30]} 26. Nc4 {[%clk 0:00:50]}  Qf4 {[%clk 0:01:25]} 27. Be3 {[%clk 0:00:43]}  Nxe3 {[%clk 0:01:26]} 28. Nxe3 {[%clk 0:00:43]}  Ne4 {[%clk 0:01:25]} 29. Qc2 {[%clk 0:00:34]}  Nxf2 {[%clk 0:01:20]} 30. Qxf2 {[%clk 0:00:35]}  Qxe3 {[%clk 0:01:20]} 31. Bc4 {[%clk 0:00:29]}  Qxc1+ {[%clk 0:01:19]} 0-1


[Site "https://www.chess.com"]